bitfinex-derivatives/quotes_ETHF0:USTF0_20250828
["timestamp","ask_amount","ask_price","bid_price","bid_amount"]
[1756388299806,0.86350227,4598.9,4598.6,21.132]
[1756388299999,0.3024,4598.7,4598.6,21.132]
[1756388300200,0.56109051,4598.7,4598.3,21.12]
[1756388300506,0.3024,4599.2,4598.3,21.12]
[1756388300707,0.56096192,4599.1,4598.3,21.12]
[1756388300908,0.3024,4598.9,4598.3,21.12]
[1756388301111,3.76876192,4598.8,4598.1,21.108]
[1756388301411,0.56096192,4598.7,4598.1,21.108]
[1756388301610,3.2078,4598.8,4598.1,21.108]
[1756388301805,3.2078,4599.3,4598.1,21.108]
[1756388302104,0.55759975,4599.2,4598.5,3.2078]
[1756388302304,4.06779975,4599.1,4598.6,21.119]
[1756388302504,0.3024,4598.9,4598.0,3.2078]
[1756388302810,0.3024,4599.4,4598.1,21.121]
[1756388303010,0.55744983,4599.3,4598.0,3.2078]
[1756388303208,3.76524983,4599.2,4598.1,21.117]
[1756388303413,0.55744983,4599.1,4598.1,21.117]
[1756388303612,0.55744983,4599.0,4598.1,21.117]
[1756388303808,0.3024,4598.8,4598.0,3.2078]
[1756388304006,0.3024,4598.5,4597.8,21.108]
[1756388304318,0.55744983,4598.4,4597.8,21.108]
[1756388304505,0.55744983,4598.3,4597.8,21.108]
[1756388304812,0.3024,4599.0,4598.1,3.2078]
[1756388305126,0.55742358,4598.9,4597.8,21.108]
[1756388305408,0.55742358,4598.8,4597.9,21.101]
[1756388305711,0.55742358,4598.7,4598.0,3.2078]
[1756388305910,3.2078,4599.2,4598.0,3.2078]
[1756388306106,0.55744267,4599.1,4598.1,0.39143]
[1756388306303,3.2078,4599.2,4598.0,3.59924]
[1756388306511,0.55748541,4599.1,4598.1,21.096]
[1756388306708,0.3024,4598.9,4598.1,21.096]
[1756388306909,0.55744441,4598.8,4598.1,21.096]
[1756388307110,0.55744441,4598.7,4598.1,21.096]
[1756388307307,0.55744441,4598.7,4598.0,3.2078]
[1756388307308,0.3024,4599.1,4598.0,3.2078]
[1756388307614,3.2078,4598.6,4598.1,21.089]
[1756388307815,0.3024,4598.4,4598.1,21.089]
[1756388308010,0.557421,4598.3,4598.1,21.089]
[1756388308317,0.557421,4598.2,4598.1,21.089]
[1756388308502,0.3024,4599.0,4598.1,21.089]
[1756388308706,3.2078,4599.1,4598.1,21.089]
[1756388308707,3.2078,4599.1,4598.2,3.81668]
[1756388308907,3.5102,4599.7,4598.2,3.42526]
[1756388309209,0.55793631,4599.6,4598.7,3.59919]
[1756388309409,0.55759843,4599.5,4598.7,3.2078]
[1756388309715,3.2078,4599.7,4598.8,21.087]
[1756388309910,0.55783398,4599.6,4598.7,44.0078]
[1756388310106,0.3024,4599.4,4598.8,21.087]
[1756388310310,0.55783398,4599.3,4598.8,21.087]
[1756388310508,0.55783398,4599.2,4598.8,21.087]
[1756388310805,0.55783398,4599.1,4598.7,3.2078]
[1756388311013,3.5102,4599.7,4598.7,3.2078]
[1756388311209,0.55775042,4599.6,4598.8,21.078]
[1756388311414,0.55775042,4599.5,4598.8,21.078]
[1756388311610,3.2078,4599.7,4598.8,21.078]
[1756388311808,0.55785065,4599.6,4598.8,21.078]
[1756388312012,0.3024,4600.2,4599.4,3.2078]
[1756388312233,0.55785895,4600.1,4599.5,21.072]
[1756388312415,0.55790623,4600.0,4599.5,21.072]
[1756388312616,3.2078,4600.3,4599.6,21.071]
[1756388312815,0.55790595,4600.2,4599.6,21.071]
[1756388313011,0.55790595,4600.1,4599.6,21.071]
[1756388313316,3.2078,4600.9,4599.9,3.2078]
[1756388313504,0.5579852,4600.8,4599.9,3.2078]
[1756388313710,3.2078,4600.9,4599.9,3.42517]
[1756388313912,3.2078,4600.9,4599.9,3.2078]
[1756388314612,0.55802101,4600.8,4600.0,21.062]
[1756388314814,0.3024,4601.0,4600.0,21.062]
[1756388314815,0.55802101,4600.7,4600.0,21.062]
[1756388315013,0.3024,4601.0,4600.0,21.062]
[1756388315213,0.55797805,4600.9,4600.4,3.2078]
[1756388315409,3.2078,4602.0,4600.4,3.2078]
[1756388315614,0.55801693,4601.9,4601.2,3.2078]
[1756388315918,3.2078,4602.0,4601.3,21.076]
[1756388316119,3.2078,4602.8,4601.3,21.076]
[1756388316313,0.558165,4602.7,4601.7,3.2078]
[1756388316508,0.558165,4602.6,4601.7,3.2078]
[1756388316716,0.558165,4602.5,4601.7,3.2078]
[1756388317019,0.558165,4602.4,4601.7,3.2078]
[1756388317212,0.558165,4602.3,4601.7,3.2078]
[1756388317411,0.558165,4602.2,4601.7,3.2078]
[1756388317708,3.2078,4602.8,4601.7,3.2078]
[1756388317911,0.3032,4602.6,4601.8,21.055]
[1756388318114,0.55818201,4602.5,4601.9,3.2078]
[1756388318314,0.55818201,4602.5,4601.8,21.055]
[1756388318510,0.55818201,4602.5,4601.2,3.2078]
[1756388318717,3.2078,4601.8,4601.3,21.062]
[1756388319022,0.3032,4601.5,4601.2,3.2078]
[1756388319318,0.3032,4601.3,4601.1,31.318]
[1756388319615,3.2078,4601.8,4601.1,31.318]
[1756388319817,3.2078,4601.8,4601.1,52.381]
[1756388319818,0.55803516,4601.7,4601.1,52.381]
[1756388320019,0.3032,4601.5,4601.1,52.381]
[1756388320214,0.3032,4601.5,4600.1,2.34787688]
[1756388320215,0.3032,4601.2,4600.1,5.16440688]
[1756388320415,0.86125321,4601.1,4600.1,5.16440688]
[1756388320720,0.55805321,4601.0,4600.1,3.2078]
[1756388320910,0.55805321,4600.9,4600.1,3.2078]
[1756388321125,3.2078,4600.7,4599.5,20.019]
[1756388321419,0.3032,4600.1,4599.5,20.019]
[1756388321616,0.55805321,4600.0,4599.5,20.019]
[1756388321816,0.55805321,4599.9,4599.5,20.019]
[1756388322115,3.2078,4600.2,4599.5,20.019]
[1756388322315,0.55785622,4600.1,4599.5,20.019]
[1756388322512,3.2078,4600.8,4599.7,3.2078]
[1756388322740,0.55787463,4600.7,4599.9,0.39128]
[1756388322918,3.511,4601.3,4599.7,3.2078]
[1756388322919,0.55787463,4600.6,4599.7,3.2078]
[1756388323124,3.511,4601.3,4599.7,3.2078]
[1756388323125,0.55787463,4600.5,4599.7,3.2078]
[1756388323323,0.55787463,4600.4,4599.8,0.39129]
[1756388323626,3.2078,4601.8,4600.3,3.59905]
[1756388323916,0.55800854,4601.7,4600.8,3.2078]
[1756388324116,0.55800854,4601.6,4601.3,3.2078]
[1756388324312,3.2078,4602.3,4601.4,21.034]
[1756388324510,0.55809321,4602.2,4601.3,3.2078]
[1756388324717,0.86129321,4602.1,4601.4,13.176]
[1756388324917,0.3032,4601.9,4601.4,13.176]
[1756388325116,0.3032,4601.7,4601.3,21.044]
[1756388325318,0.55809321,4601.6,4601.3,21.044]
[1756388325519,0.55809321,4601.5,4601.3,21.044]
[1756388325831,0.3032,4602.0,4601.3,21.044]
[1756388326020,0.55807438,4601.9,4601.3,21.044]
[1756388326323,3.2078,4602.3,4600.8,44.0078]
[1756388326324,0.86127438,4601.8,4601.2,21.033]
[1756388326523,0.55807438,4601.7,4601.2,21.033]
[1756388326725,0.55807438,4601.6,4601.2,21.033]
[1756388326923,0.55807438,4601.5,4601.2,21.033]
[1756388327224,0.3032,4602.0,4601.2,21.033]
[1756388327527,0.55712521,4601.9,4601.2,21.033]
[1756388327725,0.55712521,4601.8,4601.2,21.033]
[1756388328018,0.55712521,4601.7,4601.3,3.2078]
[1756388328224,0.3032,4602.7,4601.3,3.2078]
[1756388328426,0.55713851,4602.6,4601.6,0.39114]
[1756388328620,0.55713851,4602.5,4601.3,3.2078]
[1756388328822,0.55713851,4602.5,4601.4,0.39115]
[1756388329025,0.55713851,4602.4,4601.3,3.2078]
[1756388329223,0.55713851,4602.3,4601.3,3.2078]
[1756388329423,0.55713851,4602.2,4601.3,3.2078]
[1756388329726,3.2078,4602.7,4601.4,21.013]
[1756388329727,0.86033851,4602.1,4601.4,21.013]
[1756388330032,0.55713851,4602.0,4601.3,24.2198]
[1756388330229,0.55713851,4602.0,4601.3,3.2078]
[1756388330425,3.2078,4601.7,4600.7,21.008]
[1756388330617,3.2078,4601.2,4599.5,3.2078]
[1756388330822,0.3032,4600.6,4599.6,14.578]
[1756388331122,0.55713851,4600.5,4599.6,14.578]
[1756388331322,3.2078,4600.7,4599.6,14.578]
[1756388331323,0.55713851,4600.4,4599.6,14.96931]
[1756388331529,3.2078,4600.7,4599.5,3.2078]
[1756388331729,0.556975,4600.6,4599.7,21.021]
[1756388331924,0.556975,4600.5,4599.7,21.021]
[1756388332124,0.556975,4600.4,4599.7,21.021]
[1756388332327,3.2078,4600.7,4599.7,21.021]
[1756388332523,0.55696849,4600.6,4599.7,21.021]
[1756388332717,0.55696849,4600.5,4599.7,21.021]
[1756388333017,0.55696849,4600.5,4599.8,21.01]
[1756388333018,0.55696849,4600.4,4599.8,21.01]
[1756388333220,0.3032,4600.1,4599.5,3.2078]
[1756388333420,0.86016849,4600.0,4599.3,21.012]
[1756388333629,0.55696849,4599.9,4599.2,21.012]
[1756388333926,0.55696849,4599.9,4598.8,34.5168]
[1756388333927,3.2078,4599.7,4598.8,34.5168]
[1756388334120,0.55696849,4599.6,4598.8,31.309]
[1756388334425,3.2078,4599.2,4598.5,21.008]
[1756388334631,0.86016849,4599.1,4598.4,21.008]
[1756388334928,0.55696849,4599.0,4598.4,21.008]
[1756388335129,0.3032,4598.8,4598.4,21.008]
[1756388335324,0.86016849,4598.7,4598.4,21.008]
[1756388335630,0.3032,4599.1,4598.4,21.008]
[1756388335829,0.5567505,4599.0,4598.4,21.008]
[1756388336034,0.3032,4598.8,4598.4,21.008]
[1756388336230,0.5567505,4598.7,4598.4,21.008]
[1756388336419,0.3032,4598.8,4598.4,21.008]
[1756388336623,0.3032,4598.8,4597.7,40.8]
[1756388336624,0.3032,4598.5,4597.6,3.2078]
[1756388336823,0.55674786,4598.4,4597.6,3.2078]
[1756388337126,3.2078,4598.1,4596.3,4.69604773]
[1756388337330,0.3032,4597.3,4596.4,17.3498]
[1756388337530,0.55674786,4597.2,4596.4,17.3498]
[1756388337730,0.55674786,4597.1,4596.4,17.3498]
[1756388338031,0.55674786,4597.0,4596.4,17.3498]
[1756388338232,0.85994786,4596.9,4596.4,17.3498]
[1756388338530,0.55674786,4596.8,4596.4,17.3498]
[1756388338727,0.3032,4596.9,4596.4,17.3498]
[1756388339025,0.8596998,4596.8,4596.4,17.3498]
[1756388339331,0.3032,4596.6,4594.9,5.94724085]
[1756388339527,0.3032,4595.9,4594.9,3.2078]
[1756388339728,0.55650716,4595.8,4594.9,3.2078]
[1756388339924,0.55650716,4595.7,4594.9,3.2078]
[1756388340124,0.55650716,4595.6,4594.9,3.2078]
[1756388340367,0.3032,4595.9,4594.9,3.2078]
[1756388340368,0.55650716,4595.5,4594.9,3.2078]
[1756388340529,0.3032,4595.9,4594.9,3.2078]
[1756388340724,0.55631912,4595.8,4594.9,3.2078]
[1756388340924,0.55631912,4595.7,4594.9,3.2078]
[1756388341124,0.55631912,4595.6,4595.0,20.983]
[1756388341330,0.55631912,4595.5,4595.0,20.983]
[1756388341527,3.2078,4596.0,4595.0,20.983]
[1756388341832,0.55631753,4595.9,4595.0,20.983]
[1756388342032,0.55631753,4595.8,4595.0,20.983]
[1756388342333,0.55631753,4595.7,4595.1,20.971]
[1756388342531,0.55631753,4595.6,4595.1,20.971]
[1756388342727,3.2078,4596.5,4595.1,20.971]
[1756388342929,0.55635715,4596.4,4595.1,20.971]
[1756388343129,3.2078,4596.5,4595.1,20.971]
[1756388343130,0.55635715,4596.3,4595.1,20.971]
[1756388343331,0.55635715,4596.2,4595.3,3.2078]
[1756388343627,0.55635715,4596.2,4595.1,20.971]
[1756388343628,3.2078,4595.4,4594.5,31.318]
[1756388343935,0.3032,4595.9,4594.3,3.2078]
[1756388343936,3.511,4594.9,4594.3,3.2078]
[1756388344130,0.3032,4594.7,4594.3,3.2078]
[1756388344333,0.55635715,4594.6,4594.3,3.2078]
[1756388344533,0.3032,4594.5,4594.3,3.2078]
[1756388344732,0.3032,4594.5,4594.1,21.06912734]
[1756388345042,3.511,4594.2,4594.1,0.10012734]
[1756388345232,3.76432167,4594.2,4594.1,0.10012734]
[1756388345428,3.2078,4594.2,4594.1,0.10012734]
[1756388345633,2.74360257,4596.6,4594.2,0.39176]
[1756388345634,3.2078,4595.2,4594.2,0.39176]
[1756388345935,0.5565927,4595.1,4594.2,0.39176]
[1756388346135,1.77534065,4596.5,4594.1,0.10012734]
[1756388346136,3.2078,4596.0,4594.6,3.2078]
[1756388346429,0.55662412,4595.9,4595.7,3.2078]
[1756388346629,3.2078,4597.1,4595.7,3.2078]
[1756388346630,0.3029,4597.0,4595.7,3.2078]
[1756388346827,1.55773065,4597.9,4594.7,33.29060688]
[1756388346828,3.2078,4596.0,4595.5,12.125]
[1756388347027,0.3029,4595.8,4594.9,3.2078]
[1756388347236,3.2078,4595.5,4595.0,20.994]
[1756388347433,3.5107,4595.5,4595.0,20.994]
[1756388347634,3.5107,4596.2,4595.0,20.994]
[1756388347836,0.55668783,4596.1,4595.0,20.994]
[1756388348033,0.55668783,4596.0,4595.0,20.994]
[1756388348231,0.55668783,4595.9,4595.4,3.2078]
[1756388348535,0.3029,4596.2,4595.4,3.2078]
[1756388348738,0.55669178,4596.1,4595.4,3.2078]
[1756388349036,0.55669178,4596.0,4595.4,3.2078]
[1756388349238,3.5107,4596.8,4595.4,3.2078]
[1756388349437,3.5107,4596.8,4595.4,3.59946]
[1756388349438,0.5568746,4596.7,4595.4,3.59946]
[1756388349736,0.5568746,4596.6,4595.9,3.2078]
[1756388349938,3.2078,4596.8,4596.0,20.987]
[1756388350134,0.55695981,4596.7,4596.4,3.2078]
[1756388350324,3.2078,4597.9,4596.4,3.2078]
[1756388350529,0.55704812,4597.8,4596.5,9.396]
[1756388350736,0.55704812,4597.7,4596.5,9.396]
[1756388350932,0.55704812,4597.6,4596.5,9.396]
[1756388351233,0.55704812,4597.5,4596.5,9.396]
[1756388351439,3.2078,4597.9,4596.5,9.396]
[1756388351741,3.2078,4598.5,4597.5,0.39149]
[1756388351962,0.55718603,4598.4,4597.6,15.21]
[1756388352132,3.2078,4598.5,4597.6,15.21]
[1756388352535,3.2078,4598.5,4597.9,0.39145]
[1756388352777,3.2078,4599.0,4598.1,0.39143]
[1756388352928,3.2078,4599.5,4598.7,3.2078]
[1756388353237,0.3029,4599.8,4598.8,20.975]
[1756388353433,0.55755137,4599.7,4599.2,3.2078]
[1756388353736,3.2078,4600.2,4599.2,3.2078]
[1756388353931,0.55756928,4600.1,4599.3,20.97]
[1756388354241,0.55756928,4600.0,4599.3,20.97]
[1756388354439,3.2078,4600.2,4599.2,3.2078]
[1756388354644,0.55763641,4600.1,4599.3,14.145]
[1756388354835,0.55763641,4600.0,4599.3,14.145]
[1756388355141,0.3029,4600.7,4599.3,14.145]
[1756388355334,0.54073809,4600.6,4599.7,3.2078]
[1756388355639,0.54073809,4600.5,4599.8,20.955]
[1756388355852,0.54073809,4600.5,4599.7,3.2078]
[1756388355853,0.54073809,4600.4,4599.7,3.2078]
[1756388356140,0.3029,4600.7,4599.7,24.1648]
[1756388356437,0.51483661,4600.6,4599.7,24.1648]
[1756388356637,0.51483661,4600.5,4599.8,3.2078]
[1756388356837,0.3029,4600.7,4599.8,3.2078]
[1756388357139,0.51405455,4600.6,4599.8,3.2078]
[1756388357342,3.2078,4600.8,4599.8,3.2078]
[1756388357534,3.2078,4600.8,4599.8,5.55569688]
[1756388358047,3.2078,4600.8,4599.9,0.39128]
[1756388358240,3.2078,4600.8,4599.8,5.16440688]
[1756388358443,3.2078,4600.8,4599.9,20.934]
[1756388358646,3.2078,4600.8,4600.0,20.93]
[1756388358950,3.2078,4600.8,4599.8,24.1378]
[1756388358951,0.8169853,4600.7,4599.8,24.1378]
[1756388359143,0.5140853,4600.6,4599.8,24.1378]
[1756388359439,0.5140853,4600.5,4599.8,24.1378]
[1756388359739,3.5107,4601.3,4600.3,3.2078]
[1756388359939,0.5141015,4601.2,4600.3,3.2078]
[1756388360140,0.5141015,4601.1,4600.3,3.2078]
[1756388360338,3.5107,4601.3,4600.4,5.898]
[1756388360534,0.51410325,4601.2,4600.3,3.2078]
[1756388360737,0.51410325,4601.1,4600.4,5.736]
[1756388360946,3.5107,4601.3,4600.4,5.736]
[1756388361242,0.51410924,4601.2,4600.4,5.736]
[1756388361437,0.51410924,4601.1,4600.4,5.736]
[1756388361632,3.5107,4601.3,4600.4,5.736]
[1756388361839,0.51410161,4601.2,4600.4,5.736]
[1756388362038,0.51410161,4601.1,4600.4,5.736]
[1756388362240,3.5107,4601.3,4600.4,20.889]
[1756388362441,0.51410309,4601.2,4600.4,20.889]
[1756388362639,0.3029,4602.1,4601.0,0.39119]
[1756388362940,0.51420425,4602.0,4601.3,3.2078]
[1756388363245,0.3029,4602.5,4601.3,3.2078]
[1756388363246,0.3029,4602.5,4601.4,18.278]
[1756388363453,0.51424671,4602.4,4601.8,3.2078]
[1756388363640,0.51424671,4602.3,4601.8,3.2078]
[1756388363838,0.3029,4602.8,4601.9,20.897]
[1756388364047,0.51424912,4602.7,4601.9,20.897]
[1756388364249,0.3029,4602.8,4601.9,20.897]
[1756388364250,0.51424912,4602.6,4601.9,20.897]
[1756388364436,0.51424912,4602.5,4601.9,20.897]
[1756388364638,0.51424912,4602.4,4601.9,20.897]
[1756388364840,0.3029,4602.8,4601.9,20.897]
[1756388365040,0.51161688,4602.7,4601.9,20.897]
[1756388365240,0.51161688,4602.7,4601.8,3.2078]
[1756388365241,0.51161688,4602.6,4601.8,3.2078]
[1756388365437,0.51161688,4602.5,4601.9,20.885]
[1756388365644,0.51161688,4602.4,4601.9,20.885]
[1756388365946,0.3029,4603.5,4602.3,3.2078]
[1756388366156,0.50707329,4603.4,4602.9,3.2078]
[1756388366349,0.50707329,4603.3,4602.9,24.0828]
[1756388366548,3.2078,4603.9,4602.9,24.0818]
[1756388366743,0.3029,4603.7,4602.9,24.0818]
[1756388367050,0.3029,4603.5,4602.9,20.874]
[1756388367254,0.3029,4603.3,4602.6,22.43279453]
[1756388367443,0.50706886,4603.2,4602.6,22.43279453]
[1756388367837,0.50706886,4603.2,4602.2,3.2078]
[1756388367838,0.50706886,4603.2,4602.5,1.56479453]
[1756388368039,3.2078,4602.9,4602.3,1.56479453]
[1756388368242,0.50706886,4602.8,4602.2,24.0698]
[1756388368545,0.50706886,4602.7,4602.0,1.56479453]
[1756388368744,0.50706886,4602.7,4601.7,31.318]
[1756388368745,0.3029,4602.5,4601.9,20.857]
[1756388369051,0.50697657,4602.4,4601.8,22.42179453]
[1756388369354,3.2078,4602.4,4601.7,32.88279453]
[1756388369556,3.2078,4602.4,4601.2,1.95660688]
[1756388369557,0.80984294,4602.3,4601.4,1.56479453]
[1756388369754,3.2078,4601.8,4601.4,1.56479453]
[1756388370045,3.2078,4601.8,4600.8,3.2078]
[1756388370046,0.50687008,4601.7,4600.7,1.56479453]
[1756388370253,3.2078,4601.8,4599.8,2.73944085]
[1756388370254,0.3029,4600.7,4599.8,5.94724085]
[1756388370439,3.2078,4600.3,4599.5,16.909]
[1756388370642,3.2078,4600.3,4599.3,3.2078]
[1756388370643,0.80977008,4600.2,4599.3,3.2078]
[1756388370947,0.80977008,4600.2,4599.1,20.865]
[1756388370948,0.3029,4599.7,4599.1,20.865]
[1756388371143,0.3029,4599.5,4599.1,20.865]
[1756388371554,3.2078,4599.8,4599.1,20.865]
[1756388371555,0.3029,4599.3,4599.1,20.865]
[1756388371745,0.3029,4599.7,4599.1,20.865]
[1756388371945,0.3029,4599.5,4599.1,20.865]
[1756388372254,0.51799682,4599.4,4599.1,20.865]
[1756388372547,0.3029,4599.7,4598.7,3.2078]
[1756388372748,0.3029,4599.7,4598.5,31.311]
[1756388372749,3.2078,4599.1,4598.5,31.311]
[1756388372946,0.5179878,4599.0,4598.5,52.173]
[1756388373252,3.2078,4598.6,4597.4,3.2078]
[1756388373471,3.2078,4598.6,4596.1,0.22053419]
[1756388373472,0.3029,4597.9,4596.8,3.2078]
[1756388373759,0.5179878,4598.5,4596.1,0.22053419]
[1756388373760,0.3029,4596.9,4596.1,3.42833419]
[1756388373952,0.3029,4596.9,4596.1,3.2078]
[1756388373953,0.5179878,4596.8,4596.1,3.2078]
[1756388374151,0.5179878,4596.7,4596.1,3.2078]
[1756388374500,0.5179878,4596.6,4596.1,3.2078]
[1756388374653,0.5179878,4596.5,4595.8,9.885]
[1756388374848,0.3029,4596.9,4595.8,9.885]
[1756388374849,0.5179878,4596.4,4595.8,9.885]
[1756388375148,6.554,4598.2,4595.8,9.885]
[1756388375149,3.2078,4597.6,4596.1,3.2078]
[1756388375351,0.51741695,4597.5,4596.1,3.2078]
[1756388375557,3.2078,4597.6,4596.1,3.2078]
[1756388375558,0.51741695,4597.4,4596.1,3.2078]
[1756388375851,0.79491695,4597.3,4596.1,3.2078]
[1756388376053,0.51741695,4597.2,4596.1,3.2078]
[1756388376240,3.2078,4597.6,4596.1,3.2078]
[1756388376450,0.51268962,4597.5,4596.1,5.16440688]
[1756388376646,0.51268962,4597.4,4596.1,5.16440688]
[1756388376852,0.51268962,4597.3,4596.1,5.16440688]
[1756388377050,3.2078,4597.6,4596.2,0.39159]
[1756388377252,0.5126779,4597.5,4596.6,3.2078]
[1756388377446,0.2775,4597.8,4596.7,20.848]
[1756388377644,0.51263056,4597.7,4596.7,20.848]
[1756388377845,0.2775,4597.5,4596.7,20.848]
[1756388378045,0.2775,4597.5,4596.7,21.23956]
[1756388378246,3.4853,4598.1,4597.0,1.56678832]
[1756388378462,0.51040022,4598.0,4596.9,1.56678832]
[1756388378753,1.55773065,4599.1,4597.0,1.95831832]
[1756388378754,0.51040022,4597.9,4597.0,1.95831832]
[1756388378961,3.4853,4598.6,4597.5,1.56678832]
[1756388379254,0.51047636,4598.5,4597.8,1.56678832]
[1756388379465,3.4853,4599.1,4598.0,1.56678832]
[1756388379652,0.50824343,4599.0,4598.2,1.56678832]
[1756388379960,3.2078,4599.7,4597.6,22.79460688]
[1756388379961,3.2078,4599.7,4598.5,1.56678832]
[1756388380258,0.2775,4599.9,4598.8,4.77458832]
[1756388380259,0.50831383,4599.6,4598.8,4.77458832]
[1756388380562,3.2078,4600.2,4599.2,1.56678832]
[1756388380757,0.50838417,4600.1,4599.4,1.56678832]
[1756388381058,0.2775,4600.5,4599.4,1.56678832]
[1756388381247,0.50839892,4600.4,4599.5,1.56678832]
[1756388381452,0.50839892,4600.4,4598.9,16.57160688]
[1756388381453,0.2775,4601.1,4599.9,4.77458832]
[1756388381655,0.50752498,4601.0,4600.1,1.56678832]
[1756388381855,0.50752498,4600.9,4600.2,1.56678832]
[1756388382055,0.50752498,4600.8,4600.2,1.56678832]
[1756388382251,0.2775,4601.1,4600.2,1.56678832]
[1756388382452,0.50755414,4601.0,4600.2,1.56678832]
[1756388382661,0.50755414,4600.9,4600.2,1.56678832]
[1756388382855,0.2775,4601.1,4600.2,1.56678832]
[1756388383156,0.2775,4600.9,4600.1,22.38878832]
[1756388383458,0.2775,4600.7,4600.0,22.38978832]
[1756388383649,0.50755299,4600.8,4599.6,1.95660688]
[1756388383650,3.2078,4601.0,4600.1,1.56678832]
[1756388383847,0.507461,4600.9,4599.8,12.424]
[1756388384057,0.507461,4600.8,4599.7,22.38478832]
[1756388384260,0.2775,4600.6,4599.7,22.38478832]
[1756388384456,0.2775,4600.4,4599.7,1.56678832]
[1756388384657,0.507461,4600.3,4599.7,1.56678832]
[1756388384856,0.507461,4600.3,4599.6,22.38378832]
[1756388385957,3.2078,4600.0,4599.4,4.77458832]
[1756388386157,0.784961,4599.9,4599.4,3.2078]
[1756388386363,0.2775,4599.7,4599.4,3.2078]
[1756388386877,0.2775,4599.7,4599.2,20.799]
[1756388386878,0.50734808,4599.6,4599.2,20.799]
[1756388387058,0.5073553,4599.5,4599.2,20.799]
[1756388387259,0.2775,4599.4,4599.2,20.799]
[1756388387455,3.2078,4600.0,4599.2,20.799]
[1756388387761,0.50734188,4599.9,4599.2,20.799]
[1756388387960,0.50734188,4599.8,4599.2,20.799]
[1756388388150,3.2078,4600.5,4599.4,1.56678832]
[1756388388352,0.50739229,4600.4,4599.5,3.2078]
[1756388388656,0.50739229,4600.3,4599.5,4.77458832]
[1756388388960,0.50739229,4600.2,4599.5,4.77458832]
[1756388389155,3.2078,4600.5,4599.5,1.56678832]
[1756388389355,0.2775,4599.9,4599.2,1.56678832]
[1756388389554,0.2775,4599.9,4599.3,1.56678832]
[1756388389755,3.2078,4600.0,4599.3,1.56678832]
[1756388389976,3.2078,4601.0,4599.9,3.2078]
[1756388390161,0.50736358,4600.9,4600.0,20.79]
[1756388390362,0.50736358,4600.8,4600.0,20.79]
[1756388390563,3.2078,4601.0,4600.0,20.79]
[1756388390762,3.2078,4601.0,4600.2,0.39126]
[1756388390967,3.2078,4601.7,4600.7,3.2078]
[1756388391165,3.2078,4601.7,4600.8,20.797]
[1756388391967,0.2775,4602.3,4601.2,3.2078]
[1756388392167,1.55773065,4603.3,4601.2,3.2078]
[1756388392168,0.51305448,4602.2,4601.7,3.2078]
[1756388392365,3.4853,4602.9,4601.8,20.258]
[1756388392667,0.51307018,4602.8,4601.8,20.258]
[1756388392866,0.51307018,4602.7,4601.8,20.258]
[1756388393071,0.2775,4602.5,4601.8,20.258]
[1756388393261,0.2775,4602.3,4601.6,20.794]
[1756388393563,0.51307018,4602.2,4601.6,20.794]
[1756388393764,0.51307018,4602.1,4601.5,20.792]
[1756388393967,3.2078,4602.4,4601.5,20.792]
[1756388394165,3.2078,4601.9,4601.5,20.792]
[1756388394467,0.2775,4601.7,4601.5,20.792]
[1756388394671,0.2775,4601.8,4600.8,31.319]
[1756388394859,0.2775,4601.3,4600.8,52.1]
[1756388395058,0.51286439,4601.2,4600.8,52.1]
[1756388395259,3.2078,4601.4,4600.3,3.2078]
[1756388395464,3.2078,4600.9,4600.2,14.43]
[1756388395662,0.79037065,4600.8,4600.2,14.43]
[1756388395863,0.51287065,4600.7,4600.2,14.43]
[1756388396061,0.2775,4601.4,4600.3,3.2078]
[1756388396263,0.51284384,4601.3,4600.3,3.2078]
[1756388396469,0.51284384,4601.2,4600.3,3.2078]
[1756388396765,3.2078,4601.5,4600.3,3.2078]
[1756388396972,0.51288312,4601.4,4600.3,3.2078]
[1756388397261,0.2775,4601.2,4600.4,20.782]
[1756388397463,0.2775,4601.7,4600.8,3.2078]
[1756388397666,0.51290777,4601.6,4600.8,3.2078]
[1756388397971,3.2078,4602.1,4600.8,3.2078]
[1756388398163,0.51295009,4602.0,4600.8,3.2078]
[1756388398364,0.51295009,4601.9,4600.8,3.2078]
[1756388398561,0.51295009,4601.8,4600.9,0.21732]
[1756388398759,0.2775,4602.9,4601.5,3.2078]
[1756388398960,0.2775,4602.9,4602.2,3.2078]
[1756388398961,0.51303022,4602.8,4602.2,3.2078]
[1756388399165,0.2775,4602.9,4602.3,13.978]
[1756388399467,0.51308325,4602.8,4602.3,13.978]
[1756388399668,3.2078,4603.2,4602.3,13.978]
[1756388399872,0.51297445,4603.1,4601.6,3.2078]
[1756388400066,3.2078,4602.7,4601.7,13.527]
[1756388400367,3.2078,4602.1,4601.1,20.773]
[1756388400573,0.2775,4601.5,4600.9,3.2078]
[1756388400768,3.2078,4601.6,4600.9,3.2078]
[1756388400769,0.2775,4601.3,4600.9,3.2078]
[1756388401070,3.4853,4601.6,4600.9,23.9828]
[1756388401270,0.51295924,4601.5,4600.9,23.9828]
[1756388401462,0.2775,4601.3,4600.9,23.9828]
[1756388401668,3.2078,4602.1,4600.9,23.9828]
[1756388401866,0.51845753,4602.0,4600.9,23.9828]
[1756388402068,0.79595753,4601.9,4600.9,23.9828]
[1756388402267,0.51845753,4601.8,4600.9,23.9828]
[1756388402565,0.51845753,4601.7,4600.9,3.2078]
[1756388402768,0.51845753,4601.6,4601.0,12.437]
[1756388402972,0.2775,4601.9,4601.0,12.437]
[1756388403171,3.2078,4601.4,4600.3,3.2078]